fUST/lending_fUST_20240323
["ID","MTS","AMOUNT","RATE_DAILY","PERIOD"]
[320059404,1711123831986,-1129.15048317,0.00022929,2]
[320059406,1711123831996,-183.19032645,0.00023949,2]
[320059407,1711123832005,-8075.4479,0.00023954,2]
[320059409,1711123832019,-23246.4384879,0.00023955,2]
[320059411,1711123832029,-174.298023,0.00024049,2]
[320059412,1711123832038,-188.4208401,0.00024077,2]
[320059453,1711123838046,-726.0,0.00024077,2]
[320059455,1711123838058,-341.9803929,0.00024077,2]
[320059457,1711123838067,-243.417361,0.00024104,2]
[320059458,1711123838076,-164.497557,0.00024268,2]
[320059461,1711123838089,-2390.6306311,0.00024331,2]
[320059463,1711123838099,-250.0,0.00024347,2]
[320059465,1711123838109,-3206.46735,0.00024789,2]
[320059467,1711123838118,-1002.01344713,0.00025605,2]
[320059468,1711123838127,-217.415588,0.00025605,2]
[320059471,1711123838136,-290.32753414,0.00025705,2]
[320059472,1711123838145,-284.43540265,0.00025705,2]
[320059475,1711123838155,-3142.73928404,0.00025705,2]
[320059477,1711123838165,-5426.75074665,0.00025705,7]
[320059479,1711123838174,-250.0,0.00025705,2]
[320059481,1711123838183,-154.87609812,0.00025705,2]
[320059483,1711123838194,-455.05544217,0.00025705,2]
[320059485,1711123838204,-3995.79001961,0.00025705,2]
[320059487,1711123838214,-1000.30590547,0.00025705,2]
[320059489,1711123838223,-151.80276999,0.00025705,2]
[320059491,1711123838231,-151.80276999,0.00025705,2]
[320059493,1711123838240,-1167.07615016,0.00025845,2]
[320059495,1711123838250,-158.090576,0.00026172,2]
[320059496,1711123838259,-217.415588,0.00026338,2]
[320059497,1711123838271,-7752.82337168,0.00027043,2]
[320059498,1711123838281,-1508.13126843,0.00027044,2]
[320059499,1711123838290,-340.84896382,0.00027066,2]
[320059500,1711123838299,-217.415588,0.0002707,2]
[320059502,1711123838308,-1508.13126839,0.00027107,2]
[320059504,1711123838318,-288.61210646,0.00027143,2]
[320059506,1711123838327,-300.52228676,0.00027144,2]
[320059508,1711123838336,-783.57894867,0.00027144,2]
[320059510,1711123838345,-684.24922057,0.00027144,2]
[320059511,1711123838354,-232.99241824,0.00027144,2]
[320059513,1711123838363,-309.75219824,0.00027144,2]
[320059515,1711123838373,-1617.07893366,0.00027144,2]
[320059516,1711123838382,-281.46635872,0.00027144,2]
[320059517,1711123838512,-615.37638664,0.00027144,2]
[320059518,1711123838525,-5079.88695154,0.00027145,2]
[320059519,1711123838535,-20820.64364968,0.00027146,3]
[320059520,1711123838544,-146770.0,0.00027146,2]
[320059521,1711123838553,-1508.13126839,0.00027171,2]
[320059522,1711123838562,-1508.13126839,0.00027234,2]
[320059523,1711123838571,-1508.13126839,0.00027297,2]
[320059524,1711123838580,-31731.27589186,0.00027396,2]
[320059525,1711123838588,-500.0,0.00027397,2]
[320059526,1711123838597,-309.72125397,0.00027397,2]
[320059527,1711123838606,-500.0,0.00027397,2]
[320059528,1711123838614,-500.0,0.00027397,2]
[320059529,1711123838623,-500.0,0.00027397,2]
[320059530,1711123838632,-500.0,0.00027397,2]
[320059531,1711123838642,-500.0,0.00027397,2]
[320059532,1711123838651,-500.0,0.00027397,2]
[320059533,1711123838659,-502.06254263,0.00027397,2]
[320059534,1711123838670,-500.0,0.00027397,30]
[320059536,1711123838679,-500.0,0.00027397,2]
[320059538,1711123838688,-500.0,0.00027397,2]
[320059539,1711123838697,-500.0,0.00027397,2]
[320059540,1711123838706,-500.0,0.00027397,2]
[320059541,1711123838715,-500.0,0.00027397,2]
[320059542,1711123838724,-500.0,0.00027397,2]
[320059543,1711123838733,-500.0,0.00027397,2]
[320059544,1711123838743,-500.0,0.00027397,2]
[320059545,1711123838753,-500.0,0.00027397,2]
[320059546,1711123838762,-500.0,0.00027397,2]
[320059547,1711123838774,-500.43985307,0.00027397,2]
[320059548,1711123838783,-500.0,0.00027397,2]
[320059550,1711123838792,-500.0,0.00027397,2]
[320059551,1711123838801,-500.0,0.00027397,2]
[320059552,1711123838810,-500.0,0.00027397,2]
[320059553,1711123838819,-500.0,0.00027397,2]
[320059554,1711123838829,-500.0,0.00027397,2]
[320059556,1711123838838,-500.0,0.00027397,2]
[320059557,1711123838847,-500.0,0.00027397,2]
[320059558,1711123838856,-500.0,0.00027397,2]
[320059560,1711123838865,-500.0,0.00027397,2]
[320059561,1711123838874,-500.0,0.00027397,2]
[320059562,1711123838884,-500.0,0.00027397,2]
[320059563,1711123838893,-500.0,0.00027397,2]
[320059564,1711123838902,-500.0,0.00027397,2]
[320059565,1711123838912,-570.85928019,0.00027397,2]
[320059566,1711123838921,-500.0,0.00027397,2]
[320059567,1711123838931,-500.0,0.00027397,2]
[320059568,1711123838940,-154.87609912,0.00027397,2]
[320059569,1711123838949,-500.0,0.00027397,2]
[320059570,1711123838959,-500.0,0.00027397,2]
[320059571,1711123838968,-500.0,0.00027397,2]
[320059572,1711123838977,-500.0,0.00027397,2]
[320059573,1711123838986,-500.0,0.00027397,2]
[320059574,1711123838995,-500.0,0.00027397,2]
[320059575,1711123839006,-500.0,0.00027397,2]
[320059576,1711123839017,-500.0,0.00027397,2]
[320059577,1711123839026,-500.0,0.00027397,2]
[320059578,1711123839035,-808.45,0.00027397,2]
[320059579,1711123839044,-1352.66,0.00027397,2]
[320059580,1711123839054,-501.85256439,0.00027397,2]
[320059581,1711123839063,-500.0,0.00027397,2]
[320059582,1711123839073,-500.0,0.00027397,2]
[320059583,1711123839083,-500.0,0.00027397,2]
[320059584,1711123839093,-500.0,0.00027397,2]
[320059585,1711123839102,-594.2940873,0.00027397,2]
[320059586,1711123839113,-500.0,0.00027397,2]
[320059587,1711123839122,-918.39,0.00027397,2]
[320059588,1711123839132,-500.0,0.00027397,2]
[320059589,1711123839141,-500.0,0.00027397,2]
[320059590,1711123839150,-500.0,0.00027397,2]
[320059591,1711123839160,-500.0,0.00027397,2]
[320059592,1711123839169,-500.0,0.00027397,2]
[320059593,1711123839179,-500.0,0.00027397,2]
[320059594,1711123839188,-500.0,0.00027397,2]
[320059595,1711123839198,-294.47,0.00027397,2]
[320059596,1711123839207,-500.0,0.00027397,2]
[320059597,1711123839216,-500.0,0.00027397,2]
[320059598,1711123839226,-500.0,0.00027397,2]
[320059599,1711123839235,-500.0,0.00027397,2]
[320059600,1711123839244,-170.84898044,0.00027397,2]
[320059601,1711123839253,-1773.57,0.00027397,2]
[320059602,1711123839262,-872.69,0.00027397,2]
[320059603,1711123839274,-427.49478328,0.00027397,2]
[320059604,1711123839283,-500.0,0.00027397,2]
[320059605,1711123839293,-500.0,0.00027397,2]
[320059606,1711123839302,-500.0,0.00027397,2]
[320059607,1711123839311,-500.0,0.00027397,2]
[320059608,1711123839320,-1732.16,0.00027397,2]
[320059609,1711123839330,-500.0,0.00027397,2]
[320059610,1711123839340,-500.0,0.00027397,2]
[320059611,1711123839349,-500.0,0.00027397,2]
[320059612,1711123839360,-500.0,0.00027397,2]
[320059613,1711123839370,-643.42,0.00027397,2]
[320059614,1711123839379,-500.0,0.00027397,2]
[320059615,1711123839388,-626.60944168,0.00027397,2]
[320059616,1711123839397,-728.39,0.00027397,2]
[320059617,1711123839406,-3256.29,0.00027397,2]
[320059618,1711123839416,-500.0,0.00027397,2]
[320059619,1711123839425,-500.0,0.00027397,2]
[320059620,1711123839434,-823.72,0.00027397,2]
[320059621,1711123839444,-500.0,0.00027397,2]
[320059623,1711123839453,-1109.69,0.00027397,2]
[320059625,1711123839463,-500.0,0.00027397,2]
[320059626,1711123839472,-500.62140895,0.00027397,2]
[320059628,1711123839482,-500.0,0.00027397,2]
[320059630,1711123839491,-2339.26,0.00027397,2]
[320059632,1711123839500,-500.0,0.00027397,2]
[320059634,1711123839509,-500.0,0.00027397,2]
[320059636,1711123839520,-500.0,0.00027397,2]
[320059638,1711123839529,-500.0,0.00027397,2]
[320059640,1711123839538,-500.0,0.00027397,2]
[320059642,1711123839548,-155.47423784,0.00027397,2]
[320059644,1711123839558,-500.0,0.00027397,2]
[320059646,1711123839573,-500.0,0.00027397,2]
[320059647,1711123839587,-500.0,0.00027397,2]
[320059648,1711123839601,-500.0,0.00027397,2]
[320059649,1711123839612,-954.83,0.00027397,2]
[320059650,1711123839622,-500.0,0.00027397,2]
[320059651,1711123839636,-1137.39,0.00027397,2]
[320059652,1711123839650,-500.0,0.00027397,2]
[320059653,1711123839664,-500.0,0.00027397,2]
[320059654,1711123839676,-657.21,0.00027397,2]
[320059655,1711123839687,-500.0,0.00027397,2]
[320059656,1711123839699,-1616.23,0.00027397,2]
[320059657,1711123839712,-500.0,0.00027397,2]
[320059658,1711123839724,-500.0,0.00027397,2]
[320059659,1711123839737,-500.0,0.00027397,2]
[320059660,1711123839748,-500.0,0.00027397,2]
[320059661,1711123839761,-1662.36,0.00027397,2]
[320059662,1711123839776,-500.0,0.00027397,2]
[320059663,1711123839787,-1000.0,0.00027397,2]
[320059664,1711123839797,-500.0,0.00027397,2]
[320059665,1711123839812,-500.0,0.00027397,2]
[320059666,1711123839824,-500.0,0.00027397,2]
[320059667,1711123839837,-500.0,0.00027397,2]
[320059668,1711123839848,-500.0,0.00027397,2]
[320059669,1711123839860,-500.0,0.00027397,2]
[320059670,1711123839872,-599.47,0.00027397,2]
[320059671,1711123839884,-500.0,0.00027397,2]
[320059672,1711123839898,-500.0,0.00027397,2]
[320059673,1711123839911,-500.0,0.00027397,2]
[320059674,1711123839923,-573.73,0.00027397,2]
[320059675,1711123839936,-500.0,0.00027397,2]
[320059676,1711123839949,-500.0,0.00027397,2]
[320059677,1711123839960,-500.0,0.00027397,2]
[320059678,1711123839970,-500.0,0.00027397,2]
[320059679,1711123839980,-232.51884084,0.00027397,2]
[320059680,1711123839991,-500.0,0.00027397,2]
[320059681,1711123840003,-500.0,0.00027397,2]
[320059682,1711123840016,-500.0,0.00027397,2]
[320059683,1711123840027,-500.0,0.00027397,2]
[320059684,1711123840039,-236.64260937,0.00027397,2]
[320059685,1711123840053,-500.0,0.00027397,2]
[320059686,1711123840066,-500.0,0.00027397,2]
[320059687,1711123840077,-500.0,0.00027397,2]
[320059688,1711123840092,-500.0,0.00027397,2]
[320059689,1711123840103,-500.0,0.00027397,2]
[320059690,1711123840114,-500.0,0.00027397,2]
[320059691,1711123840126,-500.0,0.00027397,2]
[320059692,1711123840138,-500.0,0.00027397,2]
[320059693,1711123840149,-500.0,0.00027397,2]
[320059694,1711123840160,-502.34938608,0.00027397,2]
[320059695,1711123840171,-500.0,0.00027397,2]
[320059696,1711123840184,-500.0,0.00027397,2]
[320059697,1711123840197,-500.0,0.00027397,2]
[320059698,1711123840208,-500.0,0.00027397,2]
[320059699,1711123840219,-531.4265579,0.00027397,2]
[320059700,1711123840231,-500.0,0.00027397,2]
[320059701,1711123840242,-500.0,0.00027397,2]
[320059702,1711123840253,-500.0,0.00027397,2]
[320059703,1711123840264,-500.0,0.00027397,2]
[320059704,1711123840277,-500.0,0.00027397,2]
[320059705,1711123840287,-500.0,0.00027397,2]
[320059706,1711123840299,-500.0,0.00027397,2]
[320059707,1711123840310,-500.0,0.00027397,2]
[320059708,1711123840320,-500.0,0.00027397,2]
[320059709,1711123840331,-500.0,0.00027397,2]
[320059710,1711123840342,-500.0,0.00027397,2]
[320059711,1711123840354,-500.0,0.00027397,2]
[320059712,1711123840365,-500.0,0.00027397,2]
[320059713,1711123840376,-500.0,0.00027397,2]
[320059714,1711123840388,-500.0,0.00027397,2]
[320059715,1711123840399,-500.0,0.00027397,2]
[320059716,1711123840410,-500.0,0.00027397,2]
[320059717,1711123840421,-500.0,0.00027397,2]
[320059718,1711123840432,-500.0,0.00027397,2]
[320059719,1711123840443,-500.0,0.00027397,2]
[320059720,1711123840454,-500.0,0.00027397,2]
[320059721,1711123840465,-500.0,0.00027397,2]
[320059722,1711123840477,-500.0,0.00027397,2]
[320059723,1711123840487,-500.0,0.00027397,2]
[320059724,1711123840498,-500.0,0.00027397,2]
[320059725,1711123840510,-5407.52,0.00027397,2]
[320059726,1711123840522,-500.0,0.00027397,2]
[320059727,1711123840533,-500.0,0.00027397,2]
[320059728,1711123840545,-500.0,0.00027397,2]
[320059729,1711123840556,-500.0,0.00027397,2]
[320059730,1711123840567,-500.0,0.00027397,2]
[320059731,1711123840578,-500.0,0.00027397,2]
[320059732,1711123840589,-500.0,0.00027397,2]
[320059733,1711123840600,-500.0,0.00027397,2]
[320059734,1711123840611,-500.0,0.00027397,2]
[320059735,1711123840623,-500.0,0.00027397,2]
[320059736,1711123840634,-298.13990406,0.00027397,2]
[320059737,1711123840645,-500.0,0.00027397,2]
[320059738,1711123840657,-500.0,0.00027397,2]
[320059739,1711123840668,-500.0,0.00027397,2]
[320059740,1711123840680,-500.0,0.00027397,2]
[320059741,1711123840692,-3108.1,0.00027397,2]
[320059742,1711123840703,-500.0,0.00027397,2]
[320059743,1711123840714,-1000.0,0.00027397,2]
[320059744,1711123840726,-500.0,0.00027397,2]
[320059745,1711123840737,-2114.85,0.00027397,2]
[320059746,1711123840748,-500.0,0.00027397,2]
[320059747,1711123840761,-500.0,0.00027397,2]
[320059748,1711123840773,-500.0,0.00027397,2]
[320059749,1711123840782,-1395.04,0.00027397,2]
[320059750,1711123840791,-500.0,0.00027397,2]
[320059751,1711123840800,-500.0,0.00027397,2]
[320059752,1711123840917,-2006.28,0.00027397,2]
[320059753,1711123840969,-500.0,0.00027397,2]
[320059754,1711123840980,-766.56,0.00027397,2]
[320059755,1711123840989,-525.84,0.00027397,2]
[320059756,1711123840999,-7737.71,0.00027397,2]
[320059757,1711123841008,-938.67,0.00027397,2]
[320059758,1711123841019,-500.0,0.00027397,2]
[320059759,1711123841027,-370.02171051,0.00027397,2]
[320059760,1711123841036,-500.0,0.00027397,2]
[320059761,1711123841045,-19013.04,0.00027397,2]
[320059762,1711123841054,-4665.16,0.00027397,2]
[320059763,1711123841063,-500.0,0.00027397,2]
[320059764,1711123841072,-500.0,0.00027397,2]
[320059765,1711123841083,-500.0,0.00027397,2]
[320059766,1711123841093,-2132.99,0.00027397,2]
[320059767,1711123841102,-500.0,0.00027397,2]
[320059768,1711123841114,-500.0,0.00027397,2]
[320059769,1711123841123,-1881.92,0.00027397,2]
[320059770,1711123841132,-4757.65,0.00027397,2]
[320059771,1711123841141,-643.99,0.00027397,2]
[320059772,1711123841151,-500.0,0.00027397,2]
[320059773,1711123841160,-500.0,0.00027397,2]
[320059774,1711123841170,-500.0,0.00027397,2]
[320059775,1711123841179,-500.0,0.00027397,2]
[320059776,1711123841189,-500.0,0.00027397,2]
[320059777,1711123841199,-500.0,0.00027397,2]
[320059778,1711123841208,-500.0,0.00027397,2]
[320059779,1711123841218,-500.0,0.00027397,2]
[320059780,1711123841227,-500.85141942,0.00027397,2]
[320059781,1711123841236,-500.0,0.00027397,2]
[320059782,1711123841245,-500.0,0.00027397,2]
[320059783,1711123841254,-500.0,0.00027397,2]
[320059784,1711123841263,-500.0,0.00027397,2]
[320059785,1711123841273,-500.0,0.00027397,2]
[320059786,1711123841282,-500.0,0.00027397,2]
[320059787,1711123841291,-500.0,0.00027397,2]
[320059788,1711123841300,-500.0,0.00027397,2]
[320059789,1711123841309,-500.0,0.00027397,2]
[320059790,1711123841318,-500.0,0.00027397,2]
[320059791,1711123841327,-500.0,0.00027397,2]
[320059792,1711123841336,-500.0,0.00027397,2]
[320059793,1711123841345,-500.0,0.00027397,2]
[320059794,1711123841354,-500.0,0.00027397,2]
[320059795,1711123841362,-500.0,0.00027397,2]
[320059796,1711123841371,-500.0,0.00027397,2]
[320059797,1711123841380,-500.0,0.00027397,2]
[320059798,1711123841389,-500.0,0.00027397,2]
[320059799,1711123841399,-500.0,0.00027397,2]
[320059800,1711123841408,-2448.25,0.00027397,2]
[320059801,1711123841416,-500.0,0.00027397,2]
[320059802,1711123841426,-500.0,0.00027397,2]
[320059803,1711123841435,-500.0,0.00027397,2]
[320059804,1711123841444,-548.55,0.00027397,2]
[320059805,1711123841453,-500.0,0.00027397,2]
[320059806,1711123841462,-500.0,0.00027397,2]
[320059807,1711123841471,-500.0,0.00027397,2]
[320059808,1711123841480,-500.0,0.00027397,2]
[320059809,1711123841490,-500.0,0.00027397,2]
[320059810,1711123841499,-500.0,0.00027397,2]
[320059811,1711123841509,-261.36262508,0.00027397,2]
[320059812,1711123841520,-814.37,0.00027397,2]
[320059813,1711123841529,-500.0,0.00027397,2]
[320059814,1711123841538,-500.0,0.00027397,2]
[320059815,1711123841547,-500.0,0.00027397,2]
[320059816,1711123841556,-1784.72,0.00027397,2]
[320059817,1711123841565,-368.83574321,0.00027397,2]
[320059818,1711123841574,-1994.3,0.00027397,2]
[320059819,1711123841584,-503.0735052,0.00027397,2]
[320059820,1711123841593,-500.0,0.00027397,2]
[320059821,1711123841603,-500.0,0.00027397,2]
[320059822,1711123841612,-23972.26,0.00027397,2]
[320059823,1711123841621,-500.0,0.00027397,2]
[320059824,1711123841630,-500.0,0.00027397,2]
[320059825,1711123841640,-1132.81,0.00027397,2]
[320059826,1711123841649,-119.75074101,0.00027397,2]
[320059827,1711123841678,-411.25925899,0.00027397,2]
[320059828,1711123841688,-500.0,0.00027397,2]
[320059829,1711123841698,-1371.02396511,0.00027397,2]
[320059833,1711123842058,7217.68,0.0002,2]
[320059844,1711123842255,-349.43603489,0.00027397,2]
[320059845,1711123842265,-490.88470483,0.00027397,2]
[320059846,1711123842277,-125.67926028,0.00027397,2]
[320059849,1711123842399,-374.32073972,0.00027397,2]
[320059850,1711123842409,-500.0,0.00027397,2]
[320059851,1711123842418,-2569.87,0.00027397,2]
[320059853,1711123842428,-500.0,0.00027397,2]
[320059854,1711123842437,-279.05807573,0.00027397,2]
[320059855,1711123842447,-500.0,0.00027397,2]
[320059857,1711123842456,-1417.62066759,0.00027397,2]
[320059892,1711123843025,-2990.29933241,0.00027397,2]
[320059894,1711123843035,-500.0,0.00027397,2]
[320059896,1711123843045,-2449.35,0.00027397,2]
[320059898,1711123843054,-500.0,0.00027397,2]
[320059900,1711123843063,-500.0,0.00027397,2]
[320059902,1711123843072,-500.0,0.00027397,2]
[320059904,1711123843083,-528.43,0.00027397,2]
[320059906,1711123843092,-500.0,0.00027397,2]
[320059908,1711123843101,-2021.59,0.00027397,2]
[320059910,1711123843113,-500.0,0.00027397,2]
[320059912,1711123843123,-500.0,0.00027397,2]
[320059913,1711123843132,-500.0,0.00027397,2]
[320059914,1711123843142,-500.0,0.00027397,2]
[320059915,1711123843152,-500.0,0.00027397,2]
[320059916,1711123843162,-500.0,0.00027397,2]
[320059917,1711123843172,-810.96,0.00027397,2]
[320059918,1711123843182,-151.0,0.00027397,2]
[320059919,1711123843192,-500.0,0.00027397,2]
[320059920,1711123843201,-500.0,0.00027397,2]
[320059921,1711123843211,-500.0,0.00027397,2]
[320059923,1711123843220,-1705.53,0.00027397,2]
[320059925,1711123843229,-500.0,0.00027397,2]
[320059926,1711123843238,-500.0,0.00027397,2]
[320059927,1711123843247,-500.0,0.00027397,2]
[320059928,1711123843256,-25425.59,0.00027397,2]
[320059929,1711123843265,-520.81521444,0.00027397,2]
[320059930,1711123843277,-500.0,0.00027397,2]
[320059931,1711123843286,-1742.4,0.00027397,2]
[320059932,1711123843298,-36519.53,0.00027397,2]
[320059934,1711123843307,-601.18,0.00027397,2]
[320059935,1711123843316,-500.0,0.00027397,2]
[320059936,1711123843326,-500.0,0.00027397,2]
[320059938,1711123843336,-500.0,0.00027397,2]
[320059940,1711123843345,-500.0,0.00027397,2]
[320059941,1711123843354,-500.0,0.00027397,2]
[320059943,1711123843364,-500.0,0.00027397,2]
[320059945,1711123843373,-500.0,0.00027397,2]
[320059946,1711123843383,-500.0,0.00027397,2]
[320059947,1711123843393,-500.0,0.00027397,2]
[320059948,1711123843403,-500.0,0.00027397,2]
[320059949,1711123843413,-486.83328553,0.00027397,2]
[320059950,1711123843422,-500.0,0.00027397,2]
[320059951,1711123843431,-500.0,0.00027397,2]
[320059952,1711123843441,-500.0,0.00027397,2]
[320059953,1711123843450,-500.0,0.00027397,2]
[320059954,1711123843459,-500.0,0.00027397,2]
[320059955,1711123843469,-500.0,0.00027397,2]
[320059956,1711123843478,-500.0,0.00027397,2]
[320059957,1711123843487,-500.0,0.00027397,2]
[320059958,1711123843497,-500.0,0.00027397,2]
[320059959,1711123843506,-500.0,0.00027397,2]
[320059960,1711123843515,-500.0,0.00027397,2]
[320059961,1711123843528,-500.0,0.00027397,2]
[320059962,1711123843538,-500.0,0.00027397,2]
[320059963,1711123843547,-500.0,0.00027397,2]
[320059964,1711123843557,-500.0,0.00027397,2]
[320059965,1711123843566,-500.0,0.00027397,2]
[320059966,1711123843576,-500.0,0.00027397,2]
[320059967,1711123843585,-500.0,0.00027397,2]
[320059968,1711123843595,-500.0,0.00027397,2]
[320059969,1711123843605,-500.0,0.00027397,2]
[320059970,1711123843615,-500.0,0.00027397,2]
[320059971,1711123843626,-500.0,0.00027397,2]
[320059972,1711123843635,-500.0,0.00027397,2]
[320059973,1711123843644,-500.0,0.00027397,2]
[320059974,1711123843654,-500.0,0.00027397,2]
[320059975,1711123843664,-500.0,0.00027397,2]
[320059976,1711123843674,-166.666666,0.00027397,2]
[320059977,1711123843684,-796.41698053,0.000275,17]
[320059978,1711123843694,-1000.0,0.00027845,2]
[320059979,1711123843703,-306.0,0.0002789,2]
[320059980,1711123843713,-153.0,0.0002789,2]
[320059981,1711123843723,-184.6090244,0.00027918,2]
[320059982,1711123843732,-153.0,0.00027918,2]
[320059983,1711123843742,-500.0,0.00027944,2]
[320059984,1711123843752,-500.0,0.00027944,2]
[320059985,1711123843763,-500.0,0.00027944,2]
[320059986,1711123843777,-500.0,0.00027944,2]
[320059987,1711123843788,-500.0,0.00027944,2]
[320059988,1711123843798,-500.0,0.00027944,2]
[320059989,1711123843810,-500.0,0.00027944,2]
[320059990,1711123843820,-500.0,0.00027944,2]
[320059991,1711123843830,-500.0,0.00027944,2]
[320059992,1711123843839,-500.0,0.00027944,2]
[320059993,1711123843848,-500.0,0.00027944,2]
[320059994,1711123843858,-500.0,0.00027945,2]
[320059995,1711123843868,-500.0,0.00027945,2]
[320059996,1711123843878,-500.0,0.00027945,2]
[320059997,1711123843888,-500.0,0.00027945,2]
[320059998,1711123843897,-295.49281063,0.00027945,2]
[320059999,1711123843907,-500.0,0.00027945,2]
[320060000,1711123843919,-500.0,0.00027945,2]
[320060001,1711123843928,-500.0,0.00027945,2]
[320060002,1711123843938,-500.0,0.00027945,2]
[320060003,1711123843947,-500.0,0.00027945,2]
[320060004,1711123843957,-500.0,0.00027945,2]
[320060005,1711123843967,-500.0,0.00027945,2]
[320060006,1711123843977,-500.0,0.00027945,2]
[320060007,1711123843986,-500.0,0.00027945,2]
[320060008,1711123843996,-500.0,0.00027945,2]
[320060009,1711123844005,-483.96581288,0.00027945,2]
[320060010,1711123844015,-500.0,0.00027945,2]
[320060011,1711123844027,-500.0,0.00027945,2]
[320060012,1711123844037,-500.0,0.00027945,2]
[320060013,1711123844046,-516.37168215,0.00027945,2]
[320060014,1711123844055,-500.0,0.00027945,2]
[320060015,1711123844065,-500.0,0.00027945,2]
[320060016,1711123844075,-500.0,0.00027945,2]
[320060017,1711123844086,-500.0,0.00027945,2]
[320060018,1711123844095,-500.0,0.00027945,2]
[320060019,1711123844108,-151.0,0.00027945,2]
[320060020,1711123844117,-152.045424,0.00027945,2]
[320060021,1711123844127,-500.0,0.00027945,2]
[320060022,1711123844137,-318.76703152,0.00027945,2]
[320060023,1711123844147,-500.0,0.00027945,2]
[320060024,1711123844156,-500.0,0.00027945,2]
[320060025,1711123844166,-500.0,0.00027945,2]
[320060026,1711123844176,-500.0,0.00027945,2]
[320060027,1711123844187,-500.0,0.00027945,2]
[320060028,1711123844197,-500.0,0.00027945,2]
[320060029,1711123844207,-808.45,0.00027945,2]
[320060030,1711123844218,-1352.66,0.00027945,2]
[320060031,1711123844228,-500.0,0.00027945,2]
[320060032,1711123844237,-500.0,0.00027945,2]
[320060033,1711123844247,-500.0,0.00027945,2]
[320060034,1711123844256,-500.0,0.00027945,2]
[320060035,1711123844266,-918.39,0.00027945,2]
[320060036,1711123844281,-500.0,0.00027945,2]
[320060037,1711123844291,-500.0,0.00027945,2]
[320060038,1711123844300,-500.0,0.00027945,2]
[320060039,1711123844310,-500.0,0.00027945,2]
[320060040,1711123844319,-458.29010584,0.00027945,2]
[320060041,1711123844329,-500.0,0.00027945,2]
[320060042,1711123844338,-500.0,0.00027945,2]
[320060043,1711123844348,-500.0,0.00027945,2]
[320060044,1711123844357,-500.0,0.00027945,2]
[320060045,1711123844366,-1773.57,0.00027945,2]
[320060046,1711123844375,-872.69,0.00027945,2]
[320060047,1711123844384,-500.0,0.00027945,2]
[320060048,1711123844394,-500.0,0.00027945,2]
[320060049,1711123844403,-151.357958,0.00027945,2]
[320060050,1711123844412,-1732.16,0.00027945,2]
[320060051,1711123844422,-500.0,0.00027945,2]
[320060052,1711123844431,-643.42,0.00027945,2]
[320060053,1711123844440,-500.0,0.00027945,2]
[320060054,1711123844450,-728.39,0.00027945,2]
[320060055,1711123844460,-3256.29,0.00027945,2]
[320060056,1711123844470,-608.24,0.00027945,2]
[320060057,1711123844479,-500.0,0.00027945,2]
[320060058,1711123844488,-823.72,0.00027945,2]
[320060059,1711123844498,-500.0,0.00027945,2]